[Event "Titled Tuesday Blitz March 22 Early 2022"]
[White "Flis, Pawel"]
[Black "Dixit, Nikhil"]
[WhiteFideId "1112864"]
[BlackFideId "5059534"]
[WhiteElo "1735"]
[BlackElo "2223"]
[Result "0-1"]
[Round "02"]
[TimeControl "180+1"]
[Date "2022.03.22"]
[WhiteClock "0:00:13"]
[BlackClock "0:00:40"]

1. e4 {[%clk 0:03:00]}  Nc6 {[%clk 0:02:58]} 2. Nf3 {[%clk 0:02:59]}  g6 {[%clk 0:02:58]} 3. d4 {[%clk 0:02:58]}  d6 {[%clk 0:02:58]} 4. c3 {[%clk 0:02:58]}  Nf6 {[%clk 0:02:58]} 5. Bd3 {[%clk 0:02:57]}  Bg7 {[%clk 0:02:59]} 6. h3 {[%clk 0:02:56]}  O-O {[%clk 0:02:59]} 7. O-O {[%clk 0:02:57]}  e5 {[%clk 0:02:59]} 8. Be3 {[%clk 0:02:56]}  d5 {[%clk 0:02:57]} 9. exd5 {[%clk 0:02:52]}  Nxd5 {[%clk 0:02:54]} 10. Nxe5 {[%clk 0:02:48]}  Nxe5 {[%clk 0:02:52]} 11. dxe5 {[%clk 0:02:45]}  Nxe3 {[%clk 0:02:53]} 12. fxe3 {[%clk 0:02:45]}  Bxe5 {[%clk 0:02:54]} 13. Na3 {[%clk 0:02:42]}  Be6 {[%clk 0:02:50]} 14. Bc4 {[%clk 0:02:41]}  Qe7 {[%clk 0:02:45]} 15. Qb3 {[%clk 0:02:34]}  Bxc4 {[%clk 0:02:37]} 16. Nxc4 {[%clk 0:02:33]}  b6 {[%clk 0:02:36]} 17. Rad1 {[%clk 0:02:28]}  Rae8 {[%clk 0:02:34]} 18. Kh1 {[%clk 0:02:21]}  Bg7 {[%clk 0:02:33]} 19. Qb5 {[%clk 0:02:09]}  Qe6 {[%clk 0:02:24]} 20. Rd3 {[%clk 0:01:53]}  c6 {[%clk 0:02:21]} 21. Qb3 {[%clk 0:01:48]}  Rd8 {[%clk 0:02:18]} 22. Rfd1 {[%clk 0:01:46]}  Rxd3 {[%clk 0:02:16]} 23. Rxd3 {[%clk 0:01:47]}  Qf5 {[%clk 0:02:14]} 24. Qd1 {[%clk 0:01:42]}  b5 {[%clk 0:02:04]} 25. Na5 {[%clk 0:01:33]}  Qe6 {[%clk 0:01:58]} 26. a3 {[%clk 0:01:28]}  Be5 {[%clk 0:01:56]} 27. Qb3 {[%clk 0:01:19]}  Qf5 {[%clk 0:01:53]} 28. Qd1 {[%clk 0:01:13]}  Qg5 {[%clk 0:01:48]} 29. Qf3 {[%clk 0:01:08]}  c5 {[%clk 0:01:40]} 30. Nc6 {[%clk 0:00:55]}  Bg7 {[%clk 0:01:24]} 31. Rd5 {[%clk 0:00:53]}  Qh4 {[%clk 0:01:23]} 32. Rxc5 {[%clk 0:00:43]}  Qe1+ {[%clk 0:01:21]} 33. Kh2 {[%clk 0:00:43]}  a6 {[%clk 0:01:22]} 34. Rd5 {[%clk 0:00:38]}  Qb1 {[%clk 0:01:14]} 35. Qe2 {[%clk 0:00:34]}  Qe4 {[%clk 0:01:12]} 36. Qd3 {[%clk 0:00:31]}  Qe6 {[%clk 0:01:12]} 37. Rd6 {[%clk 0:00:30]}  Be5+ {[%clk 0:01:12]} 38. Nxe5 {[%clk 0:00:29]}  Qxe5+ {[%clk 0:01:13]} 39. Kg1 {[%clk 0:00:29]}  Re8 {[%clk 0:01:14]} 40. Rd8 {[%clk 0:00:22]}  Qe7 {[%clk 0:01:13]} 41. Rxe8+ {[%clk 0:00:21]}  Qxe8 {[%clk 0:01:14]} 42. e4 {[%clk 0:00:21]}  h5 {[%clk 0:01:11]} 43. Qd6 {[%clk 0:00:21]}  Qxe4 {[%clk 0:01:09]} 44. Qd8+ {[%clk 0:00:19]}  Kg7 {[%clk 0:01:07]} 45. Qd4+ {[%clk 0:00:18]}  Qxd4+ {[%clk 0:01:07]} 46. cxd4 {[%clk 0:00:19]}  f5 {[%clk 0:01:04]} 47. Kf2 {[%clk 0:00:20]}  g5 {[%clk 0:01:04]} 48. Ke3 {[%clk 0:00:20]}  Kf6 {[%clk 0:01:04]} 49. g3 {[%clk 0:00:17]}  Ke6 {[%clk 0:01:04]} 50. b3 {[%clk 0:00:15]}  Kd5 {[%clk 0:01:04]} 51. Kd3 {[%clk 0:00:15]}  a5 {[%clk 0:01:04]} 52. Kc3 {[%clk 0:00:13]}  a4 {[%clk 0:00:58]} 53. bxa4 {[%clk 0:00:13]}  bxa4 {[%clk 0:00:58]} 54. Kd3 {[%clk 0:00:13]}  f4 {[%clk 0:00:56]} 55. gxf4 {[%clk 0:00:13]}  gxf4 {[%clk 0:00:40]} 56. h4 {[%clk 0:00:13]}  f3 {[%clk 0:00:38]} 57. Ke3 {[%clk 0:00:13]}  f2 {[%clk 0:00:39]} 58. Kxf2 {[%clk 0:00:13]}  Kxd4 {[%clk 0:00:39]} 59. Kf3 {[%clk 0:00:13]}  Kc4 {[%clk 0:00:35]} 60. Ke3 {[%clk 0:00:12]}  Kb3 {[%clk 0:00:36]} 61. Kd3 {[%clk 0:00:12]}  Kxa3 {[%clk 0:00:37]} 62. Kc3 {[%clk 0:00:12]}  Ka2 {[%clk 0:00:37]} 63. Kc2 {[%clk 0:00:12]}  a3 {[%clk 0:00:35]} 64. Kc1 {[%clk 0:00:09]}  Kb3 {[%clk 0:00:35]} 65. Kb1 {[%clk 0:00:10]}  Ka4 {[%clk 0:00:30]} 66. Ka1 {[%clk 0:00:10]}  Kb5 {[%clk 0:00:29]} 67. Ka2 {[%clk 0:00:10]}  Kb4 {[%clk 0:00:29]} 68. Kb1 {[%clk 0:00:08]}  Kc4 {[%clk 0:00:26]} 69. Ka2 {[%clk 0:00:08]}  Kd4 {[%clk 0:00:27]} 70. Kxa3 {[%clk 0:00:09]}  Ke4 {[%clk 0:00:28]} 71. Kb4 {[%clk 0:00:09]}  Kf4 {[%clk 0:00:29]} 72. Kc4 {[%clk 0:00:10]}  Kg4 {[%clk 0:00:29]} 73. Kd4 {[%clk 0:00:10]}  Kxh4 {[%clk 0:00:30]} 74. Ke4 {[%clk 0:00:11]}  Kg3 {[%clk 0:00:30]} 75. Ke3 {[%clk 0:00:09]}  h4 {[%clk 0:00:31]} 76. Ke2 {[%clk 0:00:10]}  Kg2 {[%clk 0:00:32]} 77. Ke3 {[%clk 0:00:09]}  h3 {[%clk 0:00:32]} 78. Kf4 {[%clk 0:00:10]}  h2 {[%clk 0:00:33]} 79. Ke5 {[%clk 0:00:11]}  h1=Q {[%clk 0:00:34]} 80. Kd5 {[%clk 0:00:11]}  Qe1 {[%clk 0:00:33]} 81. Kd4 {[%clk 0:00:11]}  Qe2 {[%clk 0:00:33]} 82. Kd5 {[%clk 0:00:12]}  Qe3 {[%clk 0:00:34]} 83. Kd6 {[%clk 0:00:12]}  Qe4 {[%clk 0:00:34]} 84. Kc5 {[%clk 0:00:12]}  Qd3 {[%clk 0:00:35]} 85. Kc6 {[%clk 0:00:12]}  Qd4 {[%clk 0:00:35]} 86. Kc7 {[%clk 0:00:11]}  Qd5 {[%clk 0:00:35]} 87. Kb8 {[%clk 0:00:11]}  Qc6 {[%clk 0:00:35]} 88. Ka7 {[%clk 0:00:10]}  Qb5 {[%clk 0:00:35]} 89. Ka8 {[%clk 0:00:10]}  Kf3 {[%clk 0:00:36]} 90. Ka7 {[%clk 0:00:10]}  Ke4 {[%clk 0:00:37]} 91. Ka8 {[%clk 0:00:11]}  Kd5 {[%clk 0:00:38]} 92. Ka7 {[%clk 0:00:12]}  Kc6 {[%clk 0:00:39]} 93. Ka8 {[%clk 0:00:13]}  Qb7# {[%clk 0:00:40]} 0-1


[Site "https://www.chess.com"]

[Event "Titled Tuesday Blitz March 22 Early 2022"]
[White "Garagulya, Konstantin"]
[Black "Piliczewski, Bogusz"]
[WhiteFideId "4128931"]
[BlackFideId "1104144"]
[WhiteElo "2329"]
[BlackElo "1896"]
[Result "1-0"]
[Round "02"]
[TimeControl "180+1"]
[Date "2022.03.22"]
[WhiteClock "0:01:31"]
[BlackClock "0:00:10"]

1. d4 {[%clk 0:02:54]}  c6 {[%clk 0:03:00]} 2. Nf3 {[%clk 0:02:55]}  d5 {[%clk 0:03:00]} 3. c4 {[%clk 0:02:56]}  Nf6 {[%clk 0:03:00]} 4. Qc2 {[%clk 0:02:56]}  g6 {[%clk 0:02:59]} 5. Bf4 {[%clk 0:02:56]}  Bf5 {[%clk 0:02:59]} 6. Qb3 {[%clk 0:02:56]}  Qb6 {[%clk 0:02:59]} 7. Nbd2 {[%clk 0:02:57]}  Bg7 {[%clk 0:02:52]} 8. e3 {[%clk 0:02:56]}  Nbd7 {[%clk 0:02:52]} 9. h3 {[%clk 0:02:56]}  O-O {[%clk 0:02:49]} 10. c5 {[%clk 0:02:49]}  Qxb3 {[%clk 0:02:48]} 11. Nxb3 {[%clk 0:02:50]}  Bc2 {[%clk 0:02:44]} 12. Na5 {[%clk 0:02:48]}  Ne4 {[%clk 0:02:19]} 13. Nxb7 {[%clk 0:02:21]}  Ndxc5 {[%clk 0:02:19]} 14. Na5 {[%clk 0:02:15]}  Rfc8 {[%clk 0:01:57]} 15. b4 {[%clk 0:01:40]}  Nd3+ {[%clk 0:01:45]} 16. Bxd3 {[%clk 0:01:38]}  Bxd3 {[%clk 0:01:45]} 17. Rc1 {[%clk 0:01:36]}  Bb5 {[%clk 0:01:43]} 18. Ne5 {[%clk 0:01:35]}  Bxe5 {[%clk 0:01:41]} 19. Bxe5 {[%clk 0:01:34]}  f6 {[%clk 0:01:39]} 20. Bh2 {[%clk 0:01:34]}  a6 {[%clk 0:01:34]} 21. f3 {[%clk 0:01:34]}  Nd6 {[%clk 0:01:30]} 22. Bxd6 {[%clk 0:01:34]}  exd6 {[%clk 0:01:30]} 23. Kd2 {[%clk 0:01:35]}  Ra7 {[%clk 0:01:24]} 24. Rc3 {[%clk 0:01:35]}  Rac7 {[%clk 0:01:24]} 25. Rhc1 {[%clk 0:01:36]}  Kf7 {[%clk 0:01:23]} 26. Kc2 {[%clk 0:01:34]}  Ke6 {[%clk 0:01:21]} 27. Kb3 {[%clk 0:01:34]}  Kd7 {[%clk 0:01:20]} 28. a4 {[%clk 0:01:29]}  Bc4+ {[%clk 0:01:13]} 29. Nxc4 {[%clk 0:01:28]}  dxc4+ {[%clk 0:01:13]} 30. Rxc4 {[%clk 0:01:29]}  Rb8 {[%clk 0:01:03]} 31. Ka3 {[%clk 0:01:25]}  Rb6 {[%clk 0:00:54]} 32. d5 {[%clk 0:01:18]}  c5 {[%clk 0:00:43]} 33. bxc5 {[%clk 0:01:18]}  Rxc5 {[%clk 0:00:40]} 34. Rxc5 {[%clk 0:01:18]}  dxc5 {[%clk 0:00:40]} 35. Rxc5 {[%clk 0:01:18]}  Kd6 {[%clk 0:00:38]} 36. Rc6+ {[%clk 0:01:19]}  Rxc6 {[%clk 0:00:37]} 37. dxc6 {[%clk 0:01:20]}  Kxc6 {[%clk 0:00:37]} 38. Kb4 {[%clk 0:01:21]}  Kb6 {[%clk 0:00:35]} 39. e4 {[%clk 0:01:20]}  a5+ {[%clk 0:00:35]} 40. Kc4 {[%clk 0:01:20]}  Kc6 {[%clk 0:00:35]} 41. f4 {[%clk 0:01:21]}  h6 {[%clk 0:00:29]} 42. e5 {[%clk 0:01:20]}  fxe5 {[%clk 0:00:27]} 43. fxe5 {[%clk 0:01:21]}  g5 {[%clk 0:00:26]} 44. g4 {[%clk 0:01:21]}  Kd7 {[%clk 0:00:22]} 45. Kd5 {[%clk 0:01:22]}  Ke7 {[%clk 0:00:21]} 46. e6 {[%clk 0:01:23]}  Ke8 {[%clk 0:00:19]} 47. Ke5 {[%clk 0:01:22]}  Ke7 {[%clk 0:00:19]} 48. Kf5 {[%clk 0:01:23]}  Ke8 {[%clk 0:00:16]} 49. Kg6 {[%clk 0:01:23]}  Ke7 {[%clk 0:00:16]} 50. Kxh6 {[%clk 0:01:24]}  Kxe6 {[%clk 0:00:15]} 51. Kxg5 {[%clk 0:01:24]}  Kd5 {[%clk 0:00:14]} 52. h4 {[%clk 0:01:24]}  Kc4 {[%clk 0:00:15]} 53. h5 {[%clk 0:01:25]}  Kb4 {[%clk 0:00:15]} 54. h6 {[%clk 0:01:26]}  Kxa4 {[%clk 0:00:15]} 55. h7 {[%clk 0:01:27]}  Kb3 {[%clk 0:00:14]} 56. h8=Q {[%clk 0:01:28]}  a4 {[%clk 0:00:14]} 57. Qa1 {[%clk 0:01:29]}  a3 {[%clk 0:00:13]} 58. Kf4 {[%clk 0:01:30]}  a2 {[%clk 0:00:10]} 59. g5 {[%clk 0:01:31]} 1-0


[Site "https://www.chess.com"]

[Event "Titled Tuesday Blitz March 22 Early 2022"]
[White "Garriga Cazorla, Pere"]
[Black "Mekhane, Adam"]
[WhiteFideId "32011601"]
[BlackFideId "36050601"]
[WhiteElo "2458"]
[BlackElo "2002"]
[Result "1-0"]
[Round "02"]
[TimeControl "180+1"]
[Date "2022.03.22"]
[WhiteClock "0:01:07"]
[BlackClock "0:00:02"]

1. d4 {[%clk 0:03:00]}  Nf6 {[%clk 0:02:59]} 2. c4 {[%clk 0:03:00]}  g6 {[%clk 0:02:59]} 3. f3 {[%clk 0:02:57]}  Bg7 {[%clk 0:02:53]} 4. e4 {[%clk 0:02:57]}  d6 {[%clk 0:02:54]} 5. Nc3 {[%clk 0:02:57]}  O-O {[%clk 0:02:54]} 6. Be3 {[%clk 0:02:58]}  a6 {[%clk 0:02:52]} 7. Qd2 {[%clk 0:02:57]}  Nbd7 {[%clk 0:02:52]} 8. Nge2 {[%clk 0:02:57]}  b5 {[%clk 0:02:52]} 9. cxb5 {[%clk 0:02:57]}  axb5 {[%clk 0:02:53]} 10. Nxb5 {[%clk 0:02:58]}  c6 {[%clk 0:02:53]} 11. Nbc3 {[%clk 0:02:58]}  e5 {[%clk 0:02:53]} 12. Rd1 {[%clk 0:02:55]}  d5 {[%clk 0:02:43]} 13. dxe5 {[%clk 0:02:49]}  Nxe5 {[%clk 0:02:39]} 14. Nf4 {[%clk 0:02:50]}  Re8 {[%clk 0:01:53]} 15. Be2 {[%clk 0:02:48]}  Ba6 {[%clk 0:01:33]} 16. O-O {[%clk 0:02:36]}  Bxe2 {[%clk 0:01:22]} 17. Qxe2 {[%clk 0:02:36]}  Qa5 {[%clk 0:01:05]} 18. exd5 {[%clk 0:02:26]}  cxd5 {[%clk 0:01:01]} 19. Nfxd5 {[%clk 0:02:26]}  Nxd5 {[%clk 0:00:43]} 20. Nxd5 {[%clk 0:02:20]}  Qxa2 {[%clk 0:00:39]} 21. Nc7 {[%clk 0:02:17]}  Nc4 {[%clk 0:00:30]} 22. Nxe8 {[%clk 0:01:41]}  Rxe8 {[%clk 0:00:24]} 23. Rd3 {[%clk 0:01:41]}  Nxe3 {[%clk 0:00:20]} 24. Re1 {[%clk 0:01:42]}  Qa7 {[%clk 0:00:15]} 25. Kh1 {[%clk 0:01:41]}  Bh6 {[%clk 0:00:13]} 26. Qd2 {[%clk 0:01:33]}  Re6 {[%clk 0:00:11]} 27. Rd8+ {[%clk 0:01:33]}  Kg7 {[%clk 0:00:11]} 28. Qc3+ {[%clk 0:01:30]}  Rf6 {[%clk 0:00:09]} 29. Rd6 {[%clk 0:01:30]}  Qe7 {[%clk 0:00:09]} 30. Rd3 {[%clk 0:01:27]}  Kg8 {[%clk 0:00:06]} 31. Rdxe3 {[%clk 0:01:20]}  Bxe3 {[%clk 0:00:06]} 32. Rxe3 {[%clk 0:01:21]}  Re6 {[%clk 0:00:05]} 33. Rxe6 {[%clk 0:01:20]}  Qxe6 {[%clk 0:00:06]} 34. Qc1 {[%clk 0:01:20]}  Qb3 {[%clk 0:00:06]} 35. h3 {[%clk 0:01:18]}  h5 {[%clk 0:00:05]} 36. Qc3 {[%clk 0:01:16]}  Qd1+ {[%clk 0:00:05]} 37. Kh2 {[%clk 0:01:17]}  Qd6+ {[%clk 0:00:05]} 38. Kg1 {[%clk 0:01:17]}  Qd1+ {[%clk 0:00:05]} 39. Kf2 {[%clk 0:01:18]}  h4 {[%clk 0:00:05]} 40. b4 {[%clk 0:01:16]}  Qb1 {[%clk 0:00:04]} 41. Qc8+ {[%clk 0:01:15]}  Kg7 {[%clk 0:00:04]} 42. Qc3+ {[%clk 0:01:15]}  Kg8 {[%clk 0:00:04]} 43. Qd4 {[%clk 0:01:16]}  Qc2+ {[%clk 0:00:03]} 44. Kg1 {[%clk 0:01:16]}  Qc1+ {[%clk 0:00:03]} 45. Kf2 {[%clk 0:01:14]}  Qc2+ {[%clk 0:00:03]} 46. Ke3 {[%clk 0:01:14]}  Qc1+ {[%clk 0:00:01]} 47. Ke4 {[%clk 0:01:12]}  Qc2+ {[%clk 0:00:01]} 48. Kd5 {[%clk 0:01:11]}  Qxg2 {[%clk 0:00:02]} 49. Qxh4 {[%clk 0:01:07]}  Qxf3+ {[%clk 0:00:02]} 50. Kc5 {[%clk 0:01:07]} 1-0


[Site "https://www.chess.com"]

[Event "Titled Tuesday Blitz March 22 Early 2022"]
[White "Gatterer, Florian"]
[Black "Zarubitski, Viachaslau"]
[WhiteFideId "811688"]
[BlackFideId "13509373"]
[WhiteElo "2218"]
[BlackElo "2325"]
[Result "1-0"]
[Round "02"]
[TimeControl "180+1"]
[Date "2022.03.22"]
[WhiteClock "0:00:13"]
[BlackClock "0:00:01"]

1. Nf3 {[%clk 0:03:00]}  Nf6 {[%clk 0:02:58]} 2. c4 {[%clk 0:03:00]}  c6 {[%clk 0:02:56]} 3. Nc3 {[%clk 0:02:59]}  d5 {[%clk 0:02:56]} 4. e3 {[%clk 0:02:59]}  g6 {[%clk 0:02:54]} 5. d4 {[%clk 0:02:57]}  Bg7 {[%clk 0:02:55]} 6. Be2 {[%clk 0:02:58]}  O-O {[%clk 0:02:55]} 7. O-O {[%clk 0:02:57]}  e6 {[%clk 0:02:54]} 8. Qc2 {[%clk 0:02:52]}  Nbd7 {[%clk 0:02:53]} 9. e4 {[%clk 0:02:52]}  dxe4 {[%clk 0:02:50]} 10. Nxe4 {[%clk 0:02:51]}  Nxe4 {[%clk 0:02:44]} 11. Qxe4 {[%clk 0:02:50]}  Re8 {[%clk 0:02:45]} 12. Bg5 {[%clk 0:02:36]}  Qc7 {[%clk 0:02:30]} 13. Rfd1 {[%clk 0:02:16]}  e5 {[%clk 0:02:27]} 14. d5 {[%clk 0:02:16]}  f5 {[%clk 0:02:20]} 15. Qc2 {[%clk 0:02:10]}  cxd5 {[%clk 0:02:16]} 16. Rxd5 {[%clk 0:01:57]}  Nb6 {[%clk 0:02:10]} 17. Rdd1 {[%clk 0:01:42]}  Be6 {[%clk 0:01:53]} 18. Rac1 {[%clk 0:01:42]}  h6 {[%clk 0:01:43]} 19. Be3 {[%clk 0:01:34]}  Bf7 {[%clk 0:01:38]} 20. b3 {[%clk 0:01:24]}  e4 {[%clk 0:01:12]} 21. Nd4 {[%clk 0:01:21]}  a6 {[%clk 0:01:12]} 22. Qd2 {[%clk 0:01:03]}  Nd7 {[%clk 0:01:03]} 23. Bxh6 {[%clk 0:00:57]}  Ne5 {[%clk 0:00:59]} 24. Bxg7 {[%clk 0:00:51]}  Kxg7 {[%clk 0:00:59]} 25. f4 {[%clk 0:00:51]}  e3 {[%clk 0:00:28]} 26. Qc3 {[%clk 0:00:44]}  Rh8 {[%clk 0:00:09]} 27. Nf3 {[%clk 0:00:37]}  Rae8 {[%clk 0:00:07]} 28. Nxe5 {[%clk 0:00:34]}  Kg8 {[%clk 0:00:07]} 29. g3 {[%clk 0:00:30]}  Be6 {[%clk 0:00:05]} 30. Nf3 {[%clk 0:00:18]}  Bd7 {[%clk 0:00:03]} 31. Qd4 {[%clk 0:00:16]}  Bc6 {[%clk 0:00:03]} 32. Ne5 {[%clk 0:00:14]}  Qh7 {[%clk 0:00:01]} 33. h4 {[%clk 0:00:13]} 1-0


[Site "https://www.chess.com"]

[Event "Titled Tuesday Blitz March 22 Early 2022"]
[White "Golubka, Petro"]
[Black "Toncheva, Nadya"]
[WhiteFideId "14114224"]
[BlackFideId "2924056"]
[WhiteElo "2346"]
[BlackElo "1884"]
[Result "0-1"]
[Round "02"]
[TimeControl "180+1"]
[Date "2022.03.22"]
[WhiteClock "0:00:21"]
[BlackClock "0:00:02"]

1. d4 {[%clk 0:01:21]}  Nf6 {[%clk 0:02:57]} 2. Nf3 {[%clk 0:01:22]}  e6 {[%clk 0:02:57]} 3. c3 {[%clk 0:01:23]}  c5 {[%clk 0:02:57]} 4. Nbd2 {[%clk 0:01:24]}  d5 {[%clk 0:02:56]} 5. e3 {[%clk 0:01:00]}  Bd6 {[%clk 0:02:54]} 6. a3 {[%clk 0:01:00]}  O-O {[%clk 0:02:49]} 7. dxc5 {[%clk 0:01:00]}  Bxc5 {[%clk 0:02:49]} 8. b4 {[%clk 0:01:00]}  Be7 {[%clk 0:02:33]} 9. Bb2 {[%clk 0:01:01]}  b6 {[%clk 0:02:29]} 10. c4 {[%clk 0:01:01]}  a5 {[%clk 0:02:26]} 11. bxa5 {[%clk 0:01:00]}  bxa5 {[%clk 0:02:21]} 12. Be2 {[%clk 0:00:59]}  Nbd7 {[%clk 0:02:15]} 13. O-O {[%clk 0:00:58]}  Nc5 {[%clk 0:02:01]} 14. Rb1 {[%clk 0:00:58]}  Ba6 {[%clk 0:01:50]} 15. cxd5 {[%clk 0:00:57]}  Qxd5 {[%clk 0:01:40]} 16. Bxa6 {[%clk 0:00:54]}  Rxa6 {[%clk 0:01:38]} 17. Qe2 {[%clk 0:00:55]}  Ra7 {[%clk 0:00:56]} 18. Nc4 {[%clk 0:00:52]}  a4 {[%clk 0:00:31]} 19. Rfd1 {[%clk 0:00:51]}  Qe4 {[%clk 0:00:28]} 20. Bd4 {[%clk 0:00:50]}  Rb7 {[%clk 0:00:23]} 21. Rxb7 {[%clk 0:00:44]}  Qxb7 {[%clk 0:00:23]} 22. Nfe5 {[%clk 0:00:41]}  Nb3 {[%clk 0:00:21]} 23. Bb2 {[%clk 0:00:38]}  Rd8 {[%clk 0:00:18]} 24. h3 {[%clk 0:00:38]}  h6 {[%clk 0:00:16]} 25. f3 {[%clk 0:00:37]}  Rxd1+ {[%clk 0:00:16]} 26. Qxd1 {[%clk 0:00:37]}  Nd5 {[%clk 0:00:15]} 27. Kf2 {[%clk 0:00:32]}  Bh4+ {[%clk 0:00:15]} 28. g3 {[%clk 0:00:32]}  Be7 {[%clk 0:00:16]} 29. f4 {[%clk 0:00:31]}  Nc5 {[%clk 0:00:16]} 30. Bd4 {[%clk 0:00:30]}  Ne4+ {[%clk 0:00:16]} 31. Kg2 {[%clk 0:00:29]}  Nec3 {[%clk 0:00:15]} 32. Qf3 {[%clk 0:00:29]}  Qb3 {[%clk 0:00:12]} 33. f5 {[%clk 0:00:29]}  Qc2+ {[%clk 0:00:10]} 34. Qf2 {[%clk 0:00:29]}  Qe4+ {[%clk 0:00:09]} 35. Kh2 {[%clk 0:00:29]}  exf5 {[%clk 0:00:08]} 36. Nc6 {[%clk 0:00:29]}  Nd1 {[%clk 0:00:06]} 37. Nxe7+ {[%clk 0:00:28]}  Qxe7 {[%clk 0:00:05]} 38. Qd2 {[%clk 0:00:28]}  Qc7 {[%clk 0:00:03]} 39. Ne5 {[%clk 0:00:27]}  N1c3 {[%clk 0:00:02]} 40. Nd3 {[%clk 0:00:25]}  Ne4 {[%clk 0:00:02]} 41. Qd1 {[%clk 0:00:24]}  Qxg3+ {[%clk 0:00:02]} 42. Kh1 {[%clk 0:00:24]}  Nxe3 {[%clk 0:00:02]} 43. Qe2 {[%clk 0:00:22]}  Qxh3+ {[%clk 0:00:01]} 44. Kg1 {[%clk 0:00:23]}  Qg3+ {[%clk 0:00:02]} 45. Kh1 {[%clk 0:00:22]}  Ng4 {[%clk 0:00:02]} 46. Bf2 {[%clk 0:00:21]}  Qxd3 {[%clk 0:00:02]} 47. Qxd3 {[%clk 0:00:21]}  Ngxf2+ {[%clk 0:00:02]} 0-1


[Site "https://www.chess.com"]

[Event "Titled Tuesday Blitz March 22 Early 2022"]
[White "Griffith, Kyron"]
[Black "Tay, Junior"]
[WhiteFideId "2046318"]
[BlackFideId "5800439"]
[WhiteElo "2232"]
[BlackElo "2216"]
[Result "1-0"]
[Round "02"]
[TimeControl "180+1"]
[Date "2022.03.22"]
[WhiteClock "0:00:22"]
[BlackClock "0:00:18"]

1. e4 {[%clk 0:03:00]}  c5 {[%clk 0:02:58]} 2. Nf3 {[%clk 0:02:59]}  d6 {[%clk 0:02:58]} 3. d4 {[%clk 0:03:00]}  cxd4 {[%clk 0:02:59]} 4. Nxd4 {[%clk 0:03:01]}  Nf6 {[%clk 0:02:59]} 5. Nc3 {[%clk 0:03:00]}  g6 {[%clk 0:03:00]} 6. Be3 {[%clk 0:02:57]}  Nc6 {[%clk 0:03:00]} 7. Bc4 {[%clk 0:02:50]}  Bg7 {[%clk 0:02:56]} 8. f3 {[%clk 0:02:47]}  h5 {[%clk 0:02:56]} 9. Qd2 {[%clk 0:02:47]}  Bd7 {[%clk 0:02:56]} 10. O-O-O {[%clk 0:02:46]}  Na5 {[%clk 0:02:57]} 11. Bb3 {[%clk 0:02:42]}  Nxb3+ {[%clk 0:02:56]} 12. Nxb3 {[%clk 0:02:31]}  a5 {[%clk 0:02:56]} 13. a3 {[%clk 0:02:15]}  a4 {[%clk 0:02:53]} 14. Nd4 {[%clk 0:02:14]}  O-O {[%clk 0:02:53]} 15. Ndb5 {[%clk 0:02:06]}  Ra5 {[%clk 0:02:39]} 16. Qd3 {[%clk 0:02:00]}  Qb8 {[%clk 0:02:37]} 17. Bb6 {[%clk 0:01:48]}  Ra6 {[%clk 0:02:35]} 18. Bd4 {[%clk 0:01:45]}  Rc8 {[%clk 0:02:32]} 19. Kb1 {[%clk 0:01:45]}  Be6 {[%clk 0:02:02]} 20. Qe3 {[%clk 0:01:20]}  Bc4 {[%clk 0:01:50]} 21. e5 {[%clk 0:01:16]}  Nd7 {[%clk 0:00:37]} 22. exd6 {[%clk 0:00:58]}  exd6 {[%clk 0:00:37]} 23. Bxg7 {[%clk 0:00:47]}  Kxg7 {[%clk 0:00:38]} 24. Qe7 {[%clk 0:00:43]}  Nf6 {[%clk 0:00:34]} 25. Rxd6 {[%clk 0:00:39]}  Bxb5 {[%clk 0:00:31]} 26. Qxf6+ {[%clk 0:00:39]}  Kg8 {[%clk 0:00:31]} 27. Nxb5 {[%clk 0:00:36]}  Rac6 {[%clk 0:00:23]} 28. Rhd1 {[%clk 0:00:29]}  Rxd6 {[%clk 0:00:18]} 29. Qxd6 {[%clk 0:00:28]}  b6 {[%clk 0:00:19]} 30. Qxb8 {[%clk 0:00:28]}  Rxb8 {[%clk 0:00:19]} 31. Nc3 {[%clk 0:00:28]}  b5 {[%clk 0:00:18]} 32. Rd4 {[%clk 0:00:28]}  Kg7 {[%clk 0:00:18]} 33. Rb4 {[%clk 0:00:28]}  Re8 {[%clk 0:00:19]} 34. Rxb5 {[%clk 0:00:28]}  Re1+ {[%clk 0:00:19]} 35. Ka2 {[%clk 0:00:28]}  Rh1 {[%clk 0:00:20]} 36. h3 {[%clk 0:00:25]}  Rg1 {[%clk 0:00:21]} 37. Nxa4 {[%clk 0:00:22]}  Rxg2 {[%clk 0:00:21]} 38. c4 {[%clk 0:00:22]}  Rg3 {[%clk 0:00:17]} 39. c5 {[%clk 0:00:22]}  Rxf3 {[%clk 0:00:18]} 40. c6 {[%clk 0:00:23]}  Re3 {[%clk 0:00:18]} 41. c7 {[%clk 0:00:22]} 1-0


[Site "https://www.chess.com"]

[Event "Titled Tuesday Blitz March 22 Early 2022"]
[White "Grischuk, Alexander"]
[Black "Bernadskiy, Vitaliy"]
[WhiteFideId "4126025"]
[BlackFideId "14100371"]
[WhiteElo "2762"]
[BlackElo "2473"]
[Result "1-0"]
[Round "02"]
[TimeControl "180+1"]
[Date "2022.03.22"]
[WhiteClock "0:00:05"]
[BlackClock "0:00:02"]

1. e4 {[%clk 0:03:00]}  c6 {[%clk 0:03:00]} 2. d4 {[%clk 0:03:00]}  d5 {[%clk 0:02:59]} 3. e5 {[%clk 0:03:01]}  Bf5 {[%clk 0:02:59]} 4. Nf3 {[%clk 0:03:02]}  e6 {[%clk 0:02:58]} 5. Be2 {[%clk 0:03:02]}  Nd7 {[%clk 0:02:56]} 6. O-O {[%clk 0:03:01]}  f6 {[%clk 0:02:56]} 7. c4 {[%clk 0:02:48]}  fxe5 {[%clk 0:02:55]} 8. dxe5 {[%clk 0:02:48]}  Bc5 {[%clk 0:02:54]} 9. Nbd2 {[%clk 0:02:41]}  Ne7 {[%clk 0:02:53]} 10. Nb3 {[%clk 0:02:41]}  Bb6 {[%clk 0:02:47]} 11. Bf4 {[%clk 0:02:14]}  O-O {[%clk 0:02:47]} 12. Bg3 {[%clk 0:02:15]}  Ng6 {[%clk 0:02:40]} 13. Nbd4 {[%clk 0:02:08]}  Qe7 {[%clk 0:02:35]} 14. Nxf5 {[%clk 0:02:02]}  exf5 {[%clk 0:02:07]} 15. h3 {[%clk 0:01:03]}  f4 {[%clk 0:02:05]} 16. Bh2 {[%clk 0:01:03]}  Ndxe5 {[%clk 0:01:56]} 17. cxd5 {[%clk 0:01:03]}  Rad8 {[%clk 0:01:55]} 18. Qb3 {[%clk 0:01:02]}  Rxd5 {[%clk 0:01:48]} 19. Rad1 {[%clk 0:00:49]}  Qd6 {[%clk 0:01:21]} 20. Rxd5 {[%clk 0:00:45]}  Qxd5 {[%clk 0:01:22]} 21. Qxd5+ {[%clk 0:00:45]}  cxd5 {[%clk 0:01:22]} 22. Rd1 {[%clk 0:00:45]}  d4 {[%clk 0:00:48]} 23. Nxd4 {[%clk 0:00:38]}  Rd8 {[%clk 0:00:47]} 24. Ne6 {[%clk 0:00:25]}  Rxd1+ {[%clk 0:00:46]} 25. Bxd1 {[%clk 0:00:26]}  Nd3 {[%clk 0:00:46]} 26. Kf1 {[%clk 0:00:25]}  Kf7 {[%clk 0:00:33]} 27. Ng5+ {[%clk 0:00:24]}  Ke7 {[%clk 0:00:27]} 28. Nxh7 {[%clk 0:00:13]}  Nge5 {[%clk 0:00:10]} 29. Bc2 {[%clk 0:00:10]}  Nxb2 {[%clk 0:00:04]} 30. Bxf4 {[%clk 0:00:10]}  Ned3 {[%clk 0:00:04]} 31. Bg3 {[%clk 0:00:10]}  Nc1 {[%clk 0:00:04]} 32. a4 {[%clk 0:00:08]}  Bc5 {[%clk 0:00:03]} 33. Ng5 {[%clk 0:00:08]}  Na2 {[%clk 0:00:03]} 34. Ne4 {[%clk 0:00:08]}  Bd4 {[%clk 0:00:03]} 35. h4 {[%clk 0:00:06]}  a6 {[%clk 0:00:02]} 36. h5 {[%clk 0:00:06]}  b5 {[%clk 0:00:03]} 37. axb5 {[%clk 0:00:05]}  axb5 {[%clk 0:00:04]} 38. Bd6+ {[%clk 0:00:05]}  Ke6 {[%clk 0:00:04]} 39. Bb3+ {[%clk 0:00:04]}  Kf5 {[%clk 0:00:05]} 40. Ng3+ {[%clk 0:00:03]}  Kg4 {[%clk 0:00:03]} 41. Bxa2 {[%clk 0:00:04]}  Nd3 {[%clk 0:00:04]} 42. Ne4 {[%clk 0:00:03]}  b4 {[%clk 0:00:04]} 43. f3+ {[%clk 0:00:03]}  Kxh5 {[%clk 0:00:04]} 44. Bc4 {[%clk 0:00:04]}  Nb2 {[%clk 0:00:04]} 45. Bb3 {[%clk 0:00:04]}  Nd3 {[%clk 0:00:03]} 46. Bc2 {[%clk 0:00:04]}  Nc1 {[%clk 0:00:03]} 47. Bxb4 {[%clk 0:00:04]}  g5 {[%clk 0:00:04]} 48. Bd2 {[%clk 0:00:04]}  Na2 {[%clk 0:00:02]} 49. Bb3 {[%clk 0:00:05]} 1-0


[Site "https://www.chess.com"]